fUSD/lending_fUSD_20240121
["ID","MTS","AMOUNT","RATE_DAILY","PERIOD"]
[312409940,1705863052247,-451.07,0.00036068,2]
[312409941,1705863052257,-3000.0,0.0003607,15]
[312409942,1705863052266,-3000.0,0.0003608,15]
[312409943,1705863052276,-3000.0,0.0003609,15]
[312409944,1705863052286,-17434.0,0.000361,5]
[312409945,1705863052295,-3000.0,0.000361,15]
[312409946,1705863052305,-3000.0,0.0003611,15]
[312409947,1705863052315,-3000.0,0.0003612,15]
[312409948,1705863052325,-3000.0,0.0003613,15]
[312409949,1705863052335,-3000.0,0.0003614,15]
[312409950,1705863052344,-3000.0,0.0003615,15]
[312409951,1705863052353,-3000.0,0.0003616,15]
[312409952,1705863052363,-500.0,0.00036164,7]
[312409953,1705863052373,-3000.0,0.0003617,15]
[312409954,1705863052383,-3000.0,0.0003618,15]
[312409955,1705863052393,-3000.0,0.0003619,15]
[312409956,1705863052403,-3000.0,0.000362,15]
[312409957,1705863052413,-150.0,0.000362,10]
[312409958,1705863052423,-4682.586609,0.0003621,15]
[312409959,1705863052433,-528.84797409,0.0003625,9]
[312409960,1705863052443,-400.0,0.0003627,2]
[312409961,1705863052453,-411.29261382,0.0003627,2]
[312409962,1705863052463,-2000.04,0.000363,2]
[312409963,1705863052473,-3000.0,0.000363,15]
[312409964,1705863052483,-500.0,0.000363,3]
[312409965,1705863052493,-3000.0,0.000363,15]
[312409966,1705863052503,-3000.0,0.000363,4]
[312409967,1705863052513,-200.0,0.000363,2]
[312409968,1705863052523,-275.5,0.000363,2]
[312409969,1705863052533,-301.12,0.000363,2]
[312409970,1705863052543,-3000.0,0.0003631,15]
[312409971,1705863052553,-3000.0,0.0003631,15]
[312409972,1705863052562,-3000.0,0.0003632,15]
[312409973,1705863052572,-5492.069012,0.0003632,15]
[312409974,1705863052582,-3000.0,0.0003633,15]
[312409975,1705863052592,-3000.0,0.0003634,15]
[312409976,1705863052601,-3000.0,0.0003635,16]
[312409977,1705863052611,-3000.0,0.0003636,16]
[312409978,1705863052622,-3000.0,0.0003637,16]
[312409979,1705863052631,-3000.0,0.0003638,16]
[312409980,1705863052641,-3000.0,0.0003639,16]
[312409981,1705863052654,-3000.0,0.000364,16]
[312409982,1705863052663,-1500.0,0.000364,21]
[312409983,1705863052673,-1000.0,0.000364,21]
[312409984,1705863052682,-3000.0,0.0003641,16]
[312409985,1705863052693,-3000.0,0.0003642,16]
[312409986,1705863052702,-3000.0,0.0003643,16]
[312409987,1705863052712,-500.0,0.00036435,3]
[312409988,1705863052722,-3000.0,0.0003644,16]
[312409989,1705863052733,-500.0,0.00036444,3]
[312409990,1705863052743,-3000.0,0.0003645,16]
[312409991,1705863052753,-500.0,0.00036453,3]
[312409992,1705863052763,-3000.0,0.0003646,16]
[312409993,1705863052772,-500.0,0.00036462,3]
[312409994,1705863052782,-3000.0,0.0003647,16]
[312409995,1705863052792,-500.0,0.00036471,3]
[312409996,1705863052802,-500.0,0.00036477,2]
[312409997,1705863052811,-500.0,0.00036479,3]
[312409998,1705863052821,-4925.658413,0.0003648,16]
[312409999,1705863052831,-151.0,0.000365,7]
[312410000,1705863052841,-413.188458,0.000365,7]
[312410001,1705863052850,-413.188458,0.000365,7]
[312410002,1705863052860,-151.0,0.000365,7]
[312410003,1705863052870,-340.295733,0.000365,7]
[312410004,1705863052880,-340.295733,0.000365,7]
[312410005,1705863052890,-151.0,0.000365,7]
[312410006,1705863052903,-151.0,0.000365,7]
[312410007,1705863052925,-3768.41,0.000365,7]
[312410008,1705863052936,-1060.2,0.000365,7]
[312410009,1705863052946,-1799.1,0.000365,7]
[312410010,1705863052955,-151.0,0.00036504,7]
[312410011,1705863053221,-151.0,0.00036504,7]
[312410012,1705863053243,-382.18031,0.00036504,7]
[312410013,1705863053254,-382.18031,0.00036504,7]
[312410014,1705863053263,-122700.0,0.00036504,2]
[312410015,1705863053273,-1000.0,0.00036504,2]
[312410016,1705863053282,-3000.0,0.00036504,30]
[312410017,1705863053291,-2000.0,0.00036504,30]
[312410018,1705863053300,-2000.0,0.00036504,30]
[312410019,1705863053310,-2000.0,0.00036504,30]
[312410020,1705863053319,-2000.0,0.00036504,30]
[312410021,1705863053329,-2000.0,0.00036504,30]
[312410022,1705863053338,-2042.98019,0.00036504,30]
[312410023,1705863053347,-384.18912547,0.00036504,2]
[312410024,1705863053357,-1866.934848,0.00036504,30]
[312410025,1705863053366,-195.592571,0.00036504,3]
[312410026,1705863053375,-151.0,0.00036504,7]
[312410027,1705863053385,-151.0,0.00036504,7]
[312410028,1705863053394,-151.0,0.00036504,7]
[312410029,1705863053404,-151.0,0.00036504,7]
[312410030,1705863053413,-151.0,0.00036504,7]
[312410031,1705863053422,-522.583892,0.00036504,7]
[312410032,1705863053432,-522.583892,0.00036504,7]
[312410033,1705863053441,-151.0,0.00036504,7]
[312410034,1705863053450,-151.0,0.00036504,7]
[312410035,1705863053459,-151.0,0.00036504,7]
[312410036,1705863053468,-151.0,0.00036504,7]
[312410037,1705863053477,-249.194922,0.00036504,7]
[312410038,1705863053486,-249.194922,0.00036504,7]
[312410039,1705863053496,-175.665256,0.00036504,7]
[312410040,1705863053505,-175.665256,0.00036504,7]
[312410041,1705863053514,-151.0,0.00036504,7]
[312410042,1705863053523,-151.0,0.00036504,7]
[312410043,1705863053532,-151.0,0.00036504,7]
[312410044,1705863053541,-151.0,0.00036504,7]
[312410045,1705863053550,-151.0,0.00036504,7]
[312410046,1705863053559,-158.922982,0.00036504,7]
[312410047,1705863053569,-151.0,0.00036504,7]
[312410048,1705863053578,-860.597674,0.00036504,7]
[312410049,1705863053587,-860.597674,0.00036504,7]
[312410050,1705863053596,-150.0,0.00036531,2]
[312410051,1705863053606,-150.0,0.00036531,2]
[312410052,1705863053616,-11474.12213315,0.00036532,10]
[312410053,1705863053626,-24704.61558274,0.00036532,10]
[312410054,1705863053635,-10169.94105048,0.00036532,8]
[312410055,1705863053645,-19839.5286463,0.00036532,10]
[312410056,1705863053659,-29617.19798114,0.00036532,10]
[312410057,1705863053669,-16580.888468,0.00036532,10]
[312410058,1705863053678,-151.0,0.00036532,7]
[312410059,1705863053688,-500.0,0.00036573,2]
[312410060,1705863053700,-150.96,0.00036595,2]
[312410061,1705863053710,-1185.69,0.00036613,15]
[312410062,1705863053722,-187.22707784,0.00036769,8]
[312410063,1705863053733,-202.0,0.00036916,9]
[312410064,1705863053744,-1000.0,0.00036986,2]
[312410065,1705863053755,-700.0,0.00037,2]
[312410066,1705863053765,-310.02128018,0.00037,4]
[312410067,1705863053774,-1000.0,0.00037,2]
[312410068,1705863053783,-200.0,0.00037001,15]
[312410069,1705863053793,-450.0,0.00037004,3]
[312410070,1705863053802,-500.0,0.00037121,2]
[312410071,1705863053811,-156.8304175,0.00037191,7]
[312410072,1705863053821,-3768.41,0.000372,7]
[312410073,1705863053832,-1060.2,0.000372,7]
[312410074,1705863053842,-1799.1,0.000372,7]
[312410075,1705863053852,-159.538347,0.000372,11]
[312410076,1705863053861,-173.89946186,0.00037251,7]
[312410077,1705863053872,-355.40143417,0.00037291,7]
[312410078,1705863053881,-3000.0,0.000373,5]
[312410079,1705863053891,-277.589215,0.000373,2]
[312410080,1705863053900,-528.84797409,0.00037308,10]
[312410081,1705863053911,-150.28463604,0.00037327,2]
[312410082,1705863053921,-355.40143417,0.00037372,7]
[312410083,1705863053931,-953.43125265,0.0003738,7]
[312410084,1705863053940,-153.06381515,0.00037436,7]
[312410085,1705863053950,-153.06381515,0.00037444,7]
[312410086,1705863053960,-176.20343821,0.000375,7]
[312410087,1705863053970,-150.0,0.00037531,2]
[312410088,1705863053979,-157.0,0.000376,7]
[312410089,1705863053989,-500.0,0.00037661,2]
[312410090,1705863053998,-500.0,0.00037669,2]
[312410091,1705863054009,-150.96,0.00037671,2]
[312410092,1705863054018,-953.43125265,0.00037678,7]
[312410093,1705863054028,-2000.04,0.0003769,2]
[312410094,1705863054037,-953.43125265,0.0003773,7]
[312410095,1705863054049,-435.55173483,0.00037769,6]
[312410096,1705863054059,-6126.09364751,0.00037769,7]
[312410097,1705863054069,-1516.20817776,0.00037769,7]
[312410098,1705863054078,-210.08890032,0.00037769,6]
[312410099,1705863054088,-155.19564603,0.00037769,5]
[312410100,1705863054098,-1290.10291836,0.00037769,6]
[312410101,1705863054107,-2625.40113792,0.00037769,6]
[312410102,1705863054117,-1523.75596843,0.00037769,6]
[312410103,1705863054127,-461.61396423,0.00037769,6]
[312410104,1705863054136,-1000.0,0.00037793,2]
[312410105,1705863054146,-16000.0,0.00037794,3]
[312410106,1705863054155,-153.17770271,0.00037795,7]
[312410107,1705863054165,-16000.0,0.00037803,3]
[312410108,1705863054175,-6640.44,0.00037808,2]
[312410109,1705863054184,-13744.02,0.00037808,2]
[312410110,1705863054194,-16000.0,0.00037812,3]
[312410111,1705863054203,-160.0,0.00037812,3]
[312410112,1705863054214,-152.14113685,0.00037813,7]
[312410113,1705863054224,-155.03181256,0.00037859,7]
[312410114,1705863054234,-151.13019096,0.00037871,7]
[312410115,1705863054243,-95492.9636101,0.00037874,2]
[312410116,1705863054253,-101199.08885,0.00037874,2]
[312410117,1705863054262,-1747.0,0.0003789,3]
[312410118,1705863054272,-4828.04947064,0.00037897,2]
[312410119,1705863054281,-150.0,0.00037899,2]
[312410120,1705863054291,-215.4,0.000379,2]
[312410121,1705863054301,-151.0,0.000379,7]
[312410122,1705863054311,-151.0,0.000379,7]
[312410123,1705863054320,-151.0,0.000379,7]
[312410124,1705863054330,-413.188458,0.000379,7]
[312410125,1705863054340,-413.188458,0.000379,7]
[312410126,1705863054350,-151.0,0.000379,7]
[312410127,1705863054360,-340.295733,0.000379,7]
[312410128,1705863054370,-340.295733,0.000379,7]
[312410129,1705863054380,-151.0,0.000379,7]
[312410130,1705863054389,-151.0,0.000379,7]
[312410131,1705863054399,-151.0,0.000379,7]
[312410132,1705863054408,-151.0,0.000379,7]
[312410133,1705863054418,-382.18031,0.000379,7]
[312410134,1705863054428,-382.18031,0.000379,7]
[312410135,1705863054437,-151.0,0.000379,7]
[312410136,1705863054446,-151.0,0.000379,7]
[312410137,1705863054456,-151.0,0.000379,7]
[312410138,1705863054465,-151.0,0.000379,7]
[312410139,1705863054474,-151.0,0.000379,7]
[312410140,1705863054484,-151.0,0.000379,7]
[312410141,1705863054494,-522.583892,0.000379,7]
[312410142,1705863054503,-522.583892,0.000379,7]
[312410143,1705863054513,-151.0,0.000379,7]
[312410144,1705863054523,-192.114488,0.000379,7]
[312410145,1705863054533,-249.194922,0.000379,7]
[312410146,1705863054543,-249.194922,0.000379,7]
[312410147,1705863054555,-175.665256,0.000379,7]
[312410148,1705863054565,-175.665256,0.000379,7]
[312410149,1705863054575,-671958.970647,0.000379,3]
[312410150,1705863054584,-151.0,0.000379,7]
[312410151,1705863054594,-151.0,0.000379,7]
[312410152,1705863054604,-860.597674,0.000379,7]
[312410153,1705863054616,-860.597674,0.000379,7]
[312410154,1705863054626,-152.14113685,0.00037925,7]
[312410155,1705863054637,-355.40143417,0.00037934,7]
[312410156,1705863054646,-157.24176502,0.00037941,7]
[312410157,1705863054662,-450.0,0.00037996,3]
[312410158,1705863054673,-3768.41,0.00038,7]
[312410159,1705863054683,-1060.2,0.00038,7]
[312410160,1705863054692,-1799.1,0.00038,7]
[312410161,1705863054702,-1650.0,0.00038,3]
[312410162,1705863054712,-305.96,0.0003801,2]
[312410163,1705863054722,-152.14113685,0.0003807,7]
[312410164,1705863054733,-355.40143417,0.00038096,7]
[312410165,1705863054743,-500.0,0.00038137,7]
[312410166,1705863054753,-5000.0,0.00038155,6]
[312410167,1705863054762,-164.24481271,0.00038157,30]
[312410168,1705863054772,-800.0,0.00038165,15]
[312410169,1705863054782,-4420.2,0.000382,3]
[312410170,1705863054792,-4420.2,0.000382,3]
[312410171,1705863054802,-4420.2,0.000382,3]
[312410172,1705863054811,-4420.2,0.000382,3]
[312410173,1705863054821,-4420.2,0.000382,3]
[312410174,1705863054831,-4420.2,0.000382,3]
[312410175,1705863054840,-4420.2,0.000382,3]
[312410176,1705863054851,-4420.2,0.000382,3]
[312410177,1705863054862,-4420.2,0.000382,3]
[312410178,1705863054872,-4420.2,0.000382,3]
[312410179,1705863054883,-4420.2,0.000382,3]
[312410180,1705863054893,-4420.2,0.000382,3]
[312410181,1705863054904,-4420.2,0.000382,3]
[312410182,1705863054913,-4420.2,0.000382,3]
[312410183,1705863054923,-4420.2,0.000382,3]
[312410184,1705863054933,-4420.2,0.000382,3]
[312410185,1705863054942,-4420.2,0.000382,3]
[312410186,1705863054953,-4420.2,0.000382,3]
[312410187,1705863054962,-4420.2,0.000382,3]
[312410188,1705863054974,-4420.2,0.000382,3]
[312410189,1705863054984,-157.96,0.000382,3]
[312410190,1705863054994,-157.96,0.000382,3]
[312410191,1705863055003,-157.96,0.000382,3]
[312410192,1705863055012,-157.96,0.000382,3]
[312410193,1705863055021,-157.96,0.000382,3]
[312410194,1705863055031,-157.96,0.000382,3]
[312410195,1705863055040,-152.73,0.000382,3]
[312410196,1705863055050,-152.73,0.000382,3]
[312410197,1705863055059,-152.73,0.000382,3]
[312410198,1705863055068,-152.73,0.000382,3]
[312410199,1705863055077,-152.73,0.000382,3]
[312410200,1705863055086,-152.73,0.000382,3]
[312410201,1705863055096,-152.73,0.000382,3]
[312410202,1705863055105,-152.73,0.000382,3]
[312410203,1705863055115,-152.73,0.000382,3]
[312410204,1705863055124,-152.73,0.000382,3]
[312410205,1705863055133,-155.92044561,0.000382,7]
[312410206,1705863055143,-500.0,0.00038217,2]
[312410207,1705863055152,-153.06381515,0.00038227,7]
[312410208,1705863055161,-153.08207228,0.0003828,7]
[312410209,1705863055170,-5201.609088,0.000383,7]
[312410210,1705863055179,-953.43125265,0.000383,7]
[312410211,1705863055189,-155.92044561,0.0003833,7]
[312410212,1705863055198,-451.07,0.00038332,2]
[312410213,1705863055207,-155.03181256,0.00038336,7]
[312410214,1705863055218,-158.0,0.00038342,2]
[312410215,1705863055227,-155.03181256,0.0003835,7]
[312410216,1705863055237,-1000.0,0.00038356,2]
[312410217,1705863055246,-153.84,0.00038356,2]
[312410218,1705863055255,-528.84797409,0.00038367,11]
[312410219,1705863055264,-561.26,0.000385,3]
[312410220,1705863055274,-1022.091,0.00038519,2]
[312410221,1705863055283,-214.0,0.00038519,2]
[312410222,1705863055292,-1114.538,0.00038519,2]
[312410223,1705863055302,-997.0,0.00038519,2]
[312410224,1705863055311,-426.0,0.00038519,2]
[312410225,1705863055320,-235.0,0.00038519,2]
[312410226,1705863055329,-549.883,0.00038519,2]
[312410227,1705863055339,-153.06381515,0.00038527,7]
[312410228,1705863055348,-355.40143417,0.00038562,7]
[312410229,1705863055357,-202.0,0.00038565,12]
[312410230,1705863055368,-153.06381515,0.00038599,7]
[312410231,1705863055377,-355.40143417,0.00038653,7]
[312410232,1705863055387,-164.24481271,0.00038657,30]
[312410233,1705863055396,-152.14113685,0.00038678,7]
[312410234,1705863055406,-153.06381515,0.00038693,7]
[312410235,1705863055416,-3768.41,0.000387,7]
[312410236,1705863055425,-1060.2,0.000387,7]
[312410237,1705863055435,-1799.1,0.000387,7]
[312410238,1705863055444,-157.0,0.000387,7]
[312410239,1705863055453,-150.96,0.00038748,2]
[312410240,1705863055462,-500.0,0.00038765,2]
[312410241,1705863055472,-26614.56447736,0.000388,4]
[312410242,1705863055482,-158.35520817,0.00038809,7]
[312410243,1705863055491,-407.43,0.00038877,2]
[312410244,1705863055501,-1882.86,0.00038877,2]
[312410245,1705863055510,-401.94,0.00038877,2]
[312410246,1705863055519,-401.94,0.00038877,2]
[312410247,1705863055528,-287.32485188,0.0003888,2]
[312410248,1705863055537,-287.3248518,0.0003888,2]
[312410249,1705863055546,-287.3248518,0.0003888,2]
[312410250,1705863055556,-287.3248518,0.0003888,2]
[312410251,1705863055565,-287.3248518,0.0003888,2]
[312410252,1705863055574,-287.3248518,0.0003888,2]
[312410253,1705863055659,-287.3248518,0.0003888,2]
[312410254,1705863055669,-408.16,0.00038904,2]
[312410255,1705863055679,-150.0,0.00038904,2]
[312410256,1705863055688,-418.5,0.00038904,2]
[312410257,1705863055697,-153.76,0.00038904,2]
[312410258,1705863055707,-479.37,0.00038904,2]
[312410259,1705863055716,-294.39,0.00038904,2]
[312410260,1705863055725,-157.397368,0.00038924,7]
[312410261,1705863055735,-281.99182628,0.0003898,2]
[312410262,1705863055744,-450.0,0.00038988,3]
[312410263,1705863055753,-500.0,0.00038998,2]
[312410264,1705863055762,-1006.92641451,0.00038999,30]
[312410265,1705863055772,-975.79882434,0.00039,4]
[312410266,1705863055782,-1428.71461591,0.00039,2]
[312410267,1705863055791,-4368.65640702,0.00039,40]
[312410268,1705863055800,-197.02869702,0.00039,4]
[312410269,1705863055810,-150.3,0.00039,2]
[312410270,1705863055819,-150.3,0.00039,2]
[312410271,1705863055830,-150.3,0.00039,2]
[312410272,1705863055840,-150.3,0.00039,2]
[312410273,1705863055849,-150.3,0.00039,2]
[312410274,1705863055860,-150.3,0.00039,2]
[312410275,1705863055870,-150.3,0.00039,2]
[312410276,1705863055879,-150.3,0.00039,2]
[312410277,1705863055888,-150.3,0.00039,2]
[312410278,1705863055897,-150.3,0.00039,2]
[312410279,1705863055907,-150.3,0.00039,2]
[312410280,1705863055916,-150.3,0.00039,2]
[312410281,1705863055925,-150.3,0.00039,2]
[312410282,1705863055934,-150.3,0.00039,2]
[312410283,1705863055946,-150.3,0.00039,2]
[312410284,1705863055955,-150.3,0.00039,2]
[312410285,1705863055965,-150.3,0.00039,2]
[312410286,1705863055974,-150.3,0.00039,2]
[312410287,1705863055984,-150.3,0.00039,2]
[312410288,1705863055993,-150.3,0.00039,2]
[312410289,1705863056003,-150.3,0.00039,2]
[312410290,1705863056012,-150.3,0.00039,2]
[312410291,1705863056022,-150.3,0.00039,2]
[312410292,1705863056031,-150.3,0.00039,2]
[312410293,1705863056040,-150.3,0.00039,2]
[312410294,1705863056051,-150.3,0.00039,2]
[312410295,1705863056060,-150.3,0.00039,2]
[312410296,1705863056069,-150.3,0.00039,2]
[312410297,1705863056078,-150.3,0.00039,2]
[312410298,1705863056087,-150.3,0.00039,2]
[312410299,1705863056096,-150.3,0.00039,2]
[312410300,1705863056105,-150.3,0.00039,2]
[312410301,1705863056114,-150.3,0.00039,2]
[312410302,1705863056124,-150.3,0.00039,2]
[312410303,1705863056133,-150.3,0.00039,2]
[312410304,1705863056142,-150.3,0.00039,2]
[312410305,1705863056151,-150.3,0.00039,2]
[312410306,1705863056161,-150.3,0.00039,2]
[312410307,1705863056170,-150.3,0.00039,2]
[312410308,1705863056179,-150.3,0.00039,2]
[312410309,1705863056189,-150.3,0.00039,2]
[312410310,1705863056199,-150.3,0.00039,2]
[312410311,1705863056210,-150.3,0.00039,2]
[312410312,1705863056220,-150.3,0.00039,2]
[312410313,1705863056229,-150.3,0.00039,2]
[312410314,1705863056238,-150.3,0.00039,2]
[312410315,1705863056248,-150.3,0.00039,2]
[312410316,1705863056258,-150.3,0.00039,2]
[312410317,1705863056267,-150.3,0.00039,2]
[312410318,1705863056276,-150.3,0.00039,2]
[312410319,1705863056286,-150.3,0.00039,2]
[312410320,1705863056296,-150.3,0.00039,2]
[312410321,1705863056305,-150.3,0.00039,2]
[312410322,1705863056315,-150.3,0.00039,2]
[312410323,1705863056325,-155.03181256,0.00039009,7]
[312410324,1705863056335,-153.06381515,0.00039025,7]
[312410325,1705863056345,-355.40143417,0.00039056,7]
[312410326,1705863056354,-2000.04,0.0003908,2]
[312410327,1705863056363,-200.0,0.00039101,2]
[312410328,1705863056372,-355.40143417,0.00039146,7]
[312410329,1705863056381,-187.22707784,0.00039156,9]
[312410330,1705863056390,-164.24481271,0.00039157,30]
[312410331,1705863056399,-500.0,0.00039235,2]
[312410332,1705863056409,-381.91,0.0003926,2]
[312410333,1705863056418,-153.06381515,0.00039264,7]
[312410334,1705863056427,-953.43125265,0.00039297,7]
[312410335,1705863056437,-512.27818094,0.00039297,2]
[312410336,1705863056447,-500.0,0.00039313,2]
[312410337,1705863056457,-157.24176502,0.00039373,7]
[312410338,1705863056468,-150.0,0.00039374,2]
[312410339,1705863056478,-155.92044561,0.00039423,7]
[312410340,1705863056489,-528.84797409,0.00039426,13]
[312410341,1705863056498,-355.40143417,0.00039439,7]
[312410342,1705863056508,-4000.0,0.00039463,7]
[312410343,1705863056517,-155.92044561,0.00039487,7]
[312410344,1705863056527,-157.24176502,0.00039497,7]
[312410345,1705863056536,-392.42757575,0.000395,4]
[312410346,1705863056545,-3768.41,0.000395,7]
[312410347,1705863056555,-1060.2,0.000395,7]
[312410348,1705863056565,-1799.1,0.000395,7]
[312410349,1705863056575,-155.53562738,0.00039558,7]
[312410350,1705863056584,-178.12283362,0.00039652,7]
[312410351,1705863056594,-164.24481271,0.00039657,30]
[312410352,1705863056603,-500.0,0.000397,2]
[312410353,1705863056613,-1000.0,0.00039726,2]
[312410354,1705863056622,-155.03181256,0.00039751,7]
[312410355,1705863056632,-355.40143417,0.00039782,7]
[312410356,1705863056642,-151.13019096,0.00039794,7]
[312410357,1705863056652,-1000.0,0.000398,30]
[312410358,1705863056663,-344.0,0.000398,2]
[312410359,1705863056672,-157.0,0.000398,7]
[312410360,1705863056684,-1000.0,0.000398,2]
[312410361,1705863056695,-150.96,0.00039824,2]
[312410362,1705863056704,-1000.0,0.00039828,2]
[312410363,1705863056714,-309.550141,0.0003985,2]
[312410364,1705863056725,-628.711297,0.0003985,2]
[312410365,1705863056736,-166.117488,0.0003985,2]
[312410366,1705863056746,-185.334332,0.0003985,2]
[312410367,1705863056755,-166.160173,0.0003985,2]
[312410368,1705863056765,-309.550142,0.0003985,2]
[312410369,1705863056775,-628.711297,0.0003985,2]
[312410370,1705863056784,-183.70649,0.0003985,2]
[312410371,1705863056794,-646.52336,0.0003985,2]
[312410372,1705863056803,-928.650423,0.0003985,2]
[312410373,1705863056813,-1886.133893,0.0003985,2]
[312410374,1705863056823,-203.489608,0.0003985,2]
[312410375,1705863056833,-185.394863,0.0003985,2]
[312410376,1705863056843,-155.03181256,0.00039852,7]
[312410377,1705863056852,-429.65832165,0.00039861,2]
[312410378,1705863056862,-350.00006257,0.000399,4]
[312410379,1705863056871,-175.74415098,0.000399,6]
[312410380,1705863056882,-287.3248518,0.00039901,2]
[312410381,1705863056892,-401.77,0.00039915,2]
[312410382,1705863056902,-941.43,0.00039915,2]
[312410383,1705863056911,-400.0,0.0003997,2]
[312410384,1705863056921,-478.307959,0.0003998,3]
[312410385,1705863056930,-355.62513094,0.0003998,3]
[312410386,1705863056939,-155.03181256,0.00039987,7]
[312410387,1705863056949,-2255.0,0.0003999,3]
[312410388,1705863056959,-2414.02473532,0.00039997,2]
[312410389,1705863056968,-1082.62057108,0.0004,10]
[312410390,1705863056978,-6287.54443503,0.0004,4]
[312410391,1705863056987,-2797.57385779,0.0004,5]
[312410392,1705863056997,-2263.60545066,0.0004,17]
[312410393,1705863057007,-1084.09238932,0.0004,4]
[312410394,1705863057016,-301.26295697,0.0004,14]
[312410395,1705863057025,-22022.85823354,0.0004,4]
[312410396,1705863057035,-257.66516504,0.0004,4]
[312410397,1705863057044,-2269.30418644,0.0004,4]
[312410398,1705863057054,-446.02947764,0.0004,4]
[312410399,1705863057063,-2678.17811978,0.0004,4]
[312410400,1705863057072,-155.0,0.0004,2]
[312410401,1705863057082,-3232.46889612,0.0004,30]
[312410402,1705863057092,-54264.43228568,0.0004,4]
[312410403,1705863057101,-171.87454341,0.0004,4]
[312410404,1705863057111,-70916.12715571,0.0004,4]
[312410405,1705863057122,-500000.0,0.0004,4]
[312410406,1705863057131,-192038.1650384,0.0004,2]
[312410407,1705863057141,-398.17047626,0.0004,30]
[312410408,1705863057151,-237.10979244,0.0004,30]
[312410409,1705863057160,-1614.16827125,0.0004,7]
[312410410,1705863057170,-18331.6180761,0.0004,5]
[312410411,1705863057180,-151.0,0.0004,7]
[312410412,1705863057190,-255.0,0.0004,12]
[312410413,1705863057199,-1700.0,0.0004,3]
[312410414,1705863057209,-255.0,0.0004,12]
[312410415,1705863057218,-151.0,0.0004,7]
[312410416,1705863057228,-508.49705252,0.0004,30]
[312410417,1705863057238,-255.0,0.0004,12]
[312410418,1705863057248,-151.0,0.0004,7]
[312410419,1705863057258,-413.188458,0.0004,7]
[312410420,1705863057267,-413.188458,0.0004,7]
[312410421,1705863057276,-255.0,0.0004,12]
[312410422,1705863057286,-151.0,0.0004,7]
[312410423,1705863057295,-340.295733,0.0004,7]
[312410424,1705863057304,-340.295733,0.0004,7]
[312410425,1705863057314,-151.0,0.0004,7]
[312410426,1705863057323,-151.0,0.0004,7]
[312410427,1705863057333,-151.0,0.0004,7]
[312410428,1705863057343,-255.0,0.0004,12]
[312410429,1705863057353,-151.0,0.0004,7]
[312410430,1705863057363,-382.18031,0.0004,7]
[312410431,1705863057372,-382.18031,0.0004,7]
[312410432,1705863057383,-151.0,0.0004,7]
[312410433,1705863057393,-151.0,0.0004,7]
[312410434,1705863057403,-151.0,0.0004,7]
[312410435,1705863057413,-255.0,0.0004,12]
[312410436,1705863057422,-151.0,0.0004,7]
[312410437,1705863057433,-151.0,0.0004,7]
[312410438,1705863057442,-151.0,0.0004,7]
[312410439,1705863057453,-522.583892,0.0004,7]